fUSD/lending_fUSD_20250519
["ID","MTS","AMOUNT","RATE_DAILY","PERIOD"]
[361666972,1747678253518,-507.0,0.00023562,7]
[361666974,1747678253528,-150.0,0.00023648,2]
[361666976,1747678253537,-507.0,0.00023836,7]
[361666978,1747678253547,-1632.1,0.00023836,2]
[361666980,1747678253556,-11145.0,0.00023993,2]
[361666982,1747678253565,-1000.0,0.00024,7]
[361666984,1747678253575,-59755.21653357,0.00024,2]
[361666986,1747678253585,-986.89122445,0.00024,2]
[361666989,1747678253596,-81452.26881522,0.00024,2]
[361666991,1747678253605,-151.0,0.00024,7]
[361666993,1747678253615,-151.0,0.00024,7]
[361666994,1747678253624,-6453.78,0.00024,30]
[361666996,1747678253633,-198.17458,0.00024,7]
[361666998,1747678253643,-198.17458,0.00024,7]
[361667000,1747678253652,-151.0,0.00024,7]
[361667002,1747678253662,-156.250821,0.00024,7]
[361667005,1747678253672,-156.250821,0.00024,7]
[361667007,1747678253682,-507.0,0.0002411,7]
[361667009,1747678253691,-507.0,0.00024164,7]
[361667011,1747678253700,-15147.85,0.000242,7]
[361667013,1747678253711,-407.86917067,0.0002421,2]
[361667015,1747678253720,-3574.81459083,0.0002421,2]
[361667016,1747678253729,-150.0,0.00024225,2]
[361667018,1747678253739,-799.0,0.00024315,2]
[361667020,1747678253748,-630.0,0.00024315,2]
[361667022,1747678253757,-920.0,0.00024315,2]
[361667024,1747678253767,-1459.0,0.00024315,2]
[361667026,1747678253776,-554.0,0.00024315,2]
[361667028,1747678253785,-1149.0,0.00024315,2]
[361667030,1747678253796,-880.0,0.00024315,2]
[361667032,1747678253806,-154.0,0.00024315,2]
[361667034,1747678253815,-4043.0,0.00024315,2]
[361667036,1747678253825,-152.0,0.00024348,5]
[361667038,1747678253835,-507.0,0.00024384,7]
[361667040,1747678253844,-1076.0,0.00024417,2]
[361667042,1747678253854,-170284.31,0.000245,7]
[361667044,1747678253863,-118298.98317848,0.000245,2]
[361667046,1747678253872,-2432.84784604,0.00024521,11]
[361667048,1747678253882,-178.86,0.00024566,2]
[361667050,1747678253891,-73760.06035675,0.000246,7]
[361667052,1747678253901,-252.183501,0.000246,7]
[361667054,1747678253910,-252.183501,0.000246,7]
[361667056,1747678253920,-928.477706,0.000246,7]
[361667058,1747678253929,-928.47771,0.000246,7]
[361667060,1747678253938,-151.0,0.000246,7]
[361667062,1747678253947,-151.0,0.000246,7]
[361667064,1747678253956,-151.0,0.000246,7]
[361667066,1747678253966,-151.0,0.000246,7]
[361667068,1747678253977,-151.0,0.000246,7]
[361667070,1747678253986,-243.014636,0.000246,7]
[361667072,1747678253995,-151.0,0.000246,7]
[361667074,1747678254005,-171.861828,0.000246,7]
[361667076,1747678254016,-168.670929,0.000246,7]
[361667078,1747678254026,-171.861828,0.000246,7]
[361667081,1747678254037,-168.670929,0.000246,7]
[361667082,1747678254047,-151.0,0.000246,7]
[361667085,1747678254056,-335.077105,0.000246,7]
[361667087,1747678254066,-335.077105,0.000246,7]
[361667089,1747678254076,-151.0,0.000246,7]
[361667091,1747678254085,-1248.930925,0.000246,7]
[361667093,1747678254094,-1248.930925,0.000246,7]
[361667095,1747678254105,-151.0,0.000246,7]
[361667097,1747678254114,-151.0,0.000246,7]
[361667099,1747678254123,-151.0,0.000246,7]
[361667101,1747678254133,-151.0,0.000246,7]
[361667103,1747678254143,-151.0,0.000246,7]
[361667105,1747678254152,-151.0,0.000246,7]
[361667107,1747678254162,-151.0,0.000246,7]
[361667109,1747678254171,-1210.98069,0.000246,7]
[361667111,1747678254181,-287.61899177,0.00024628,2]
[361667113,1747678254191,-268.127,0.0002464,2]
[361667115,1747678254200,-150.0,0.00024657,2]
[361667117,1747678254210,-869.06,0.00024658,2]
[361667119,1747678254220,-1000.0,0.00024658,2]
[361667121,1747678254231,-300.0,0.00024658,45]
[361667123,1747678254241,-205.0,0.00024671,17]
[361667125,1747678254250,-171.31799998,0.000247,2]
[361667127,1747678254260,-285.212805,0.00024783,7]
[361667129,1747678254269,-151.0,0.00024783,7]
[361667131,1747678254279,-151.0,0.000248,7]
[361667133,1747678254289,-151.0,0.000248,7]
[361667135,1747678254299,-151.0,0.000248,7]
[361667138,1747678254308,-151.0,0.000248,7]
[361667139,1747678254318,-151.0,0.000248,7]
[361667142,1747678254327,-358.522963,0.000248,7]
[361667144,1747678254338,-358.522963,0.000248,7]
[361667146,1747678254347,-624431.249242,0.000248,3]
[361667148,1747678254357,-150.0,0.00024802,2]
[361667150,1747678254368,-664.31,0.00024826,2]
[361667152,1747678254379,-8642.25446908,0.000249,30]
[361667154,1747678254388,-151.0,0.000249,7]
[361667156,1747678254398,-151.0,0.000249,7]
[361667158,1747678254408,-151.0,0.000249,7]
[361667160,1747678254418,-185.579329,0.000249,7]
[361667162,1747678254427,-151.0,0.000249,7]
[361667164,1747678254437,-151.0,0.000249,7]
[361667165,1747678254447,-151.0,0.000249,7]
[361667166,1747678254456,-1210.98069,0.000249,7]
[361667167,1747678254466,-2000.0,0.000249,2]
[361667168,1747678254477,-151.0,0.000249,7]
[361667169,1747678254486,-151.0,0.000249,7]
[361667170,1747678254496,-151.0,0.000249,7]
[361667171,1747678254506,-151.0,0.000249,7]
[361667172,1747678254515,-1327.520991,0.000249,7]
[361667173,1747678254524,-1327.520991,0.000249,7]
[361667174,1747678254535,-9008.074331,0.000249,7]
[361667175,1747678254545,-9008.074331,0.000249,7]
[361667176,1747678254555,-151.0,0.000249,7]
[361667177,1747678254565,-151.0,0.000249,7]
[361667178,1747678254574,-202.157835,0.000249,7]
[361667179,1747678254584,-151.0,0.000249,7]
[361667180,1747678254594,-202.157835,0.000249,7]
[361667181,1747678254603,-151.0,0.000249,7]
[361667182,1747678254613,-165.955924,0.000249,7]
[361667183,1747678254623,-151.0,0.000249,7]
[361667184,1747678254633,-151.0,0.000249,7]
[361667185,1747678254643,-200.67745616,0.00025,2]
[361667187,1747678254653,-1725.76467992,0.00025,2]
[361667189,1747678254663,-257.35387533,0.00025,2]
[361667191,1747678254673,-360.81034006,0.00025,2]
[361667193,1747678254683,-200.0,0.00025,2]
[361667195,1747678254693,-2943.19713533,0.00025,2]
[361667197,1747678254703,-4012.27762014,0.00025,2]
[361667199,1747678254712,-1765.2913407,0.00025,2]
[361667201,1747678254722,-1029.17330775,0.00025,2]
[361667203,1747678254731,-161.74289125,0.00025,2]
[361667205,1747678254741,-200.0,0.00025,30]
[361667207,1747678254751,-42095.92062467,0.00025,2]
[361667209,1747678254760,-798.25240766,0.00025,3]
[361667211,1747678254770,-151.0,0.00025,7]
[361667213,1747678254779,-151.0,0.00025,7]
[361667215,1747678254789,-151.0,0.00025,7]
[361667217,1747678254799,-500.0,0.00025,2]
[361667219,1747678254812,-500.0,0.00025,2]
[361667221,1747678254822,-177.693409,0.00025,7]
[361667223,1747678254832,-4000.0,0.00025,2]
[361667225,1747678254843,-300.0,0.00025,2]
[361667227,1747678254853,-492.095,0.00025014,60]
[361667229,1747678254864,-3268.14099605,0.000251,2]
[361667231,1747678254875,-2270.32299134,0.000251,2]
[361667233,1747678254886,-507.0,0.00025131,7]
[361667236,1747678254897,-1200.51,0.00025205,2]
[361667238,1747678254907,-300.0,0.0002525,2]
[361667240,1747678254918,-280.0,0.000253,10]
[361667242,1747678254928,-507.0,0.00025373,7]
[361667244,1747678254939,-150.0,0.00025379,2]
[361667246,1747678254949,-2432.84784604,0.00025486,13]
[361667248,1747678254960,-152.0,0.00025505,6]
[361667250,1747678254973,-1076.0,0.00025702,2]
[361667252,1747678254983,-4000.0,0.00025714,4]
[361667254,1747678254993,-170284.31,0.000258,7]
[361667256,1747678255003,-15147.85,0.000258,7]
[361667258,1747678255013,-150.0,0.00025955,2]
[361667260,1747678255023,-19283.69975294,0.0002597,30]
[361667262,1747678255032,-580.16475219,0.0002599,2]
[361667264,1747678255042,-298.26089446,0.00025997,2]
[361667266,1747678255051,-308.46663246,0.00026,2]
[361667268,1747678255061,-4371.56525183,0.00026,2]
[361667271,1747678255071,-920.72794957,0.00026,2]
[361667273,1747678255082,-500.0,0.00026027,30]
[361667275,1747678255091,-150.0,0.00026027,2]
[361667277,1747678255101,-230.70610456,0.00026027,2]
[361667279,1747678255111,-507.0,0.00026098,7]
[361667281,1747678255120,-507.0,0.00026098,7]
[361667283,1747678255130,-187.59,0.00026164,2]
[361667285,1747678255139,-151.0,0.000262,7]
[361667287,1747678255149,-252.183501,0.000262,7]
[361667289,1747678255158,-252.183501,0.000262,7]
[361667291,1747678255168,-151.0,0.000262,7]
[361667293,1747678255177,-171.861828,0.000262,7]
[361667295,1747678255186,-168.670929,0.000262,7]
[361667297,1747678255196,-171.861828,0.000262,7]
[361667299,1747678255205,-168.670929,0.000262,7]
[361667301,1747678255215,-151.0,0.000262,7]
[361667303,1747678255225,-335.077105,0.000262,7]
[361667305,1747678255235,-335.077105,0.000262,7]
[361667307,1747678255244,-151.0,0.000262,7]
[361667309,1747678255253,-1248.930925,0.000262,7]
[361667311,1747678255263,-1248.930925,0.000262,7]
[361667313,1747678255273,-198.17458,0.000262,7]
[361667315,1747678255282,-198.17458,0.000262,7]
[361667317,1747678255291,-151.0,0.000262,7]
[361667319,1747678255301,-156.250821,0.000262,7]
[361667321,1747678255311,-156.250821,0.000262,7]
[361667323,1747678255320,-187.59,0.00026301,2]
[361667325,1747678255330,-26553.26737031,0.000264,2]
[361667327,1747678255340,-187.59,0.00026438,2]
[361667329,1747678255351,-2432.84784604,0.00026452,15]
[361667331,1747678255360,-18042.25196244,0.000265,2]
[361667414,1747678256227,-847.0109733,0.000265,2]
[361667417,1747678256238,-27391.61755725,0.000265,2]
[361667419,1747678256248,-151.0,0.000265,7]
[361667421,1747678256258,-219.294361,0.000265,7]
[361667423,1747678256267,-151.0,0.000265,7]
[361667425,1747678256277,-151.0,0.000265,5]
[361667427,1747678256286,-151.0,0.000265,7]
[361667429,1747678256295,-150.0,0.00026532,2]
[361667431,1747678256305,-500.0,0.00026575,30]
[361667433,1747678256314,-187.59,0.00026575,2]
[361667435,1747678256324,-152.0,0.00026661,7]
[361667436,1747678256333,-950.0,0.00026676,2]
[361667438,1747678256344,-187.59,0.00026712,2]
[361667440,1747678256354,-205.0,0.00026749,19]
[361667442,1747678256363,-507.0,0.00026822,7]
[361667444,1747678256373,-187.59,0.00026849,2]
[361667446,1747678256382,-187.59,0.00026986,2]
[361667448,1747678256391,-250.0,0.00027,2]
[361667450,1747678256401,-1000.58712464,0.00027,2]
[361667452,1747678256410,-223.47424402,0.00027,2]
[361667454,1747678256419,-469.71139721,0.00027,10]
[361667456,1747678256429,-257.01,0.00027,30]
[361667458,1747678256438,-2000.0,0.00027,2]
[361667460,1747678256447,-550.0,0.00027,2]
[361667462,1747678256456,-550.0,0.00027,2]
[361667464,1747678256466,-170284.31,0.00027,7]
[361667466,1747678256476,-2208.667702,0.0002701,2]
[361667468,1747678256485,-300.0,0.00027053,10]
[361667470,1747678256495,-1076.0,0.00027054,2]
[361667473,1747678256505,-507.0,0.00027064,7]
[361667475,1747678256515,-664.31,0.00027089,2]
[361667477,1747678256524,-150.0,0.00027109,2]
[361667479,1747678256533,-300.0,0.00027122,10]
[361667481,1747678256543,-187.59,0.00027123,2]
[361667483,1747678256552,-151.790847,0.00027123,7]
[361667485,1747678256561,-151.0,0.00027123,7]
[361667487,1747678256571,-151.0,0.00027123,7]
[361667489,1747678256581,-151.0,0.00027123,7]
[361667491,1747678256591,-502.939326,0.00027123,7]
[361667493,1747678256600,-502.939326,0.00027123,7]
[361667495,1747678256609,-151.0,0.00027123,7]
[361667497,1747678256619,-151.0,0.00027123,7]
[361667499,1747678256629,-3557.44,0.00027123,2]
[361667501,1747678256639,-310.11220258,0.00027142,10]
[361667503,1747678256648,-741.288893,0.00027159,7]
[361667505,1747678256657,-741.288893,0.00027159,7]
[361667507,1747678256667,-3592.125486,0.00027159,7]
[361667509,1747678256677,-3592.125486,0.00027159,7]
[361667511,1747678256686,-151.0,0.00027159,7]
[361667513,1747678256696,-970.389651,0.00027159,7]
[361667515,1747678256706,-151.0,0.00027159,7]
[361667517,1747678256715,-970.389651,0.00027159,7]
[361667519,1747678256725,-503.11194,0.00027159,7]
[361667521,1747678256735,-503.11194,0.00027159,7]
[361667523,1747678256744,-151.0,0.00027159,7]
[361667525,1747678256754,-819.88496,0.00027159,7]
[361667527,1747678256763,-819.88496,0.00027159,7]
[361667529,1747678256772,-151.0,0.00027159,7]
[361667531,1747678256782,-728.086164,0.00027159,7]
[361667533,1747678256792,-728.086164,0.00027159,7]
[361667535,1747678256803,-187.59,0.0002726,2]
[361667537,1747678256813,-201.73561654,0.000273,20]
[361667539,1747678256823,-1284.69425081,0.000273,21]
[361667541,1747678256832,-151.889845,0.000273,7]
[361667543,1747678256842,-151.0,0.000273,7]
[361667545,1747678256851,-151.0,0.000273,7]
[361667547,1747678256860,-151.0,0.000273,7]
[361667549,1747678256869,-151.0,0.000273,7]
[361667551,1747678256879,-403.65285,0.000273,7]
[361667553,1747678256888,-403.65285,0.000273,7]
[361667555,1747678256898,-158.144568,0.000273,7]
[361667557,1747678256907,-158.144568,0.000273,7]
[361667559,1747678256916,-160.616445,0.000273,7]
[361667561,1747678256926,-160.616445,0.000273,7]
[361667563,1747678256935,-151.0,0.000273,7]
[361667565,1747678256944,-151.0,0.000273,7]
[361667567,1747678256954,-151.0,0.000273,7]
[361667569,1747678256963,-151.0,0.000273,7]
[361667571,1747678256973,-151.0,0.000273,7]
[361667573,1747678256982,-151.0,0.000273,7]
[361667575,1747678256992,-799.0,0.00027315,2]
[361667577,1747678257001,-630.0,0.00027315,2]
[361667579,1747678257013,-920.0,0.00027315,2]
[361667581,1747678257023,-1459.0,0.00027315,2]
[361667583,1747678257032,-554.0,0.00027315,2]
[361667585,1747678257041,-1149.0,0.00027315,2]
[361667587,1747678257051,-880.0,0.00027315,2]
[361667589,1747678257060,-154.0,0.00027315,2]
[361667592,1747678257069,-4043.0,0.00027315,2]
[361667594,1747678257079,-309.29654756,0.00027366,2]
[361667596,1747678257088,-1000.0,0.0002739,10]
[361667597,1747678257097,-151.0,0.00027397,7]
[361667599,1747678257107,-151.0,0.00027397,7]
[361667601,1747678257116,-187.59,0.00027397,2]
[361667603,1747678257125,-150.0,0.00027397,2]
[361667606,1747678257135,-500.0,0.00027397,2]
[361667608,1747678257144,-150.0,0.00027397,2]
[361667610,1747678257154,-157.653444,0.00027397,2]
[361667611,1747678257163,-200.4791091,0.00027397,60]
[361667614,1747678257173,-354.654411,0.00027397,7]
[361667615,1747678257182,-354.654411,0.00027397,7]
[361667617,1747678257191,-354.654411,0.00027397,7]
[361667620,1747678257202,-354.654411,0.00027397,7]
[361667621,1747678257213,-354.654411,0.00027397,7]
[361667624,1747678257224,-354.654411,0.00027397,7]
[361667626,1747678257234,-354.654411,0.00027397,7]
[361667628,1747678257244,-354.654411,0.00027397,7]
[361667630,1747678257253,-354.654411,0.00027397,7]
[361667632,1747678257263,-354.654411,0.00027397,7]
[361667634,1747678257271,-300.0,0.00027397,2]
[361667636,1747678257280,-869.06,0.00027397,2]
[361667638,1747678257289,-700.0,0.00027397,2]
[361667640,1747678257298,-500.55,0.00027397,2]
[361667642,1747678257308,-9571.73,0.00027397,2]
[361667644,1747678257317,-175.28,0.00027397,10]
[361667646,1747678257326,-150.0,0.00027397,5]
[361667648,1747678257335,-1731.97,0.000274,7]
[361667650,1747678257344,-442.0,0.000274,2]
[361667652,1747678257353,-1200.0,0.000274,2]
[361667654,1747678257362,-587.0,0.000274,2]
[361667656,1747678257371,-15147.85,0.000274,7]
[361667658,1747678257380,-2432.84784604,0.00027417,17]
[361667660,1747678257389,-546.70012923,0.00027424,2]
[361667662,1747678257397,-234.68300212,0.00027424,2]
[361667664,1747678257406,-500.0,0.00027436,2]
[361667666,1747678257415,-500.0,0.00027448,2]
[361667668,1747678257425,-3905.0,0.00027472,2]
[361667670,1747678257434,-194.31948025,0.000275,2]
[361667672,1747678257443,-530.73494252,0.000275,2]
[361667674,1747678257452,-187.59,0.00027534,2]
[361667676,1747678257461,-507.0,0.00027547,14]
[361667677,1747678257471,-500.0,0.00027552,2]
[361667679,1747678257481,-1333.0,0.00027589,120]
[361667681,1747678257490,-500.0,0.00027646,2]
[361667683,1747678257499,-187.59,0.00027671,2]
[361667686,1747678257509,-150.0,0.00027686,2]
[361667688,1747678257519,-2000.0,0.000277,2]
[361667690,1747678257528,-300.0,0.0002774,45]
[361667692,1747678257538,-151.0,0.000278,7]
[361667693,1747678257548,-151.0,0.000278,7]
[361667696,1747678257558,-151.0,0.000278,7]
[361667698,1747678257567,-151.0,0.000278,7]
[361667700,1747678257576,-151.0,0.000278,7]
[361667702,1747678257585,-151.0,0.000278,7]
[361667703,1747678257594,-151.0,0.000278,7]
[361667705,1747678257604,-151.0,0.000278,7]
[361667707,1747678257613,-151.0,0.000278,7]
[361667709,1747678257622,-151.0,0.000278,7]
[361667711,1747678257631,-430.288784,0.000278,7]
[361667713,1747678257641,-430.288784,0.000278,7]
[361667715,1747678257650,-151.0,0.000278,7]
[361667717,1747678257661,-187.59,0.00027808,2]
[361667719,1747678257670,-152.0,0.00027818,8]
[361667721,1747678257680,-391.0,0.0002783,15]
[361667723,1747678257689,-187.59,0.00027945,2]
[361667725,1747678257699,-151.0,0.00027945,5]
[361667727,1747678257708,-162.19,0.00028,8]
[361667729,1747678257717,-277.66,0.00028,2]
[361667731,1747678257727,-507.0,0.00028031,14]
[361667734,1747678257737,-2300.0,0.00028053,2]
[361667735,1747678257746,-187.59,0.00028082,2]
[361667737,1747678257755,-1800.0,0.00028087,2]
[361667739,1747678257764,-500.0,0.00028096,2]
[361667741,1747678257773,-500.0,0.00028214,2]
[361667743,1747678257782,-187.59,0.00028219,2]
[361667745,1747678257791,-150.0,0.00028263,2]
[361667747,1747678257802,-507.0,0.00028272,14]
[361667749,1747678257812,-157.02478777,0.00028297,120]
[361667751,1747678257821,-864.36986934,0.000283,2]
[361667753,1747678257830,-170284.31,0.000283,7]
[361667755,1747678257841,-700.0,0.00028322,2]
[361667757,1747678257850,-1800.0,0.00028341,2]
[361667759,1747678257859,-187.59,0.00028356,2]
[361667761,1747678257868,-2432.84784604,0.00028383,18]
[361667763,1747678257878,-1800.0,0.00028396,2]
[361667765,1747678257887,-1076.0,0.00028407,5]
[361667767,1747678257897,-187.59,0.00028493,2]
[361667770,1747678257906,-178.86,0.00028493,2]
[361667772,1747678257915,-152.0,0.00028493,5]
[361667773,1747678257925,-2300.0,0.00028495,2]
[361667775,1747678257934,-586.46,0.000285,14]
[361667777,1747678257943,-151.0,0.000285,7]
[361667779,1747678257953,-277.864772,0.000285,7]
[361667781,1747678257963,-277.864772,0.000285,7]
[361667783,1747678257972,-151.0,0.000285,7]
[361667785,1747678257981,-151.0,0.000285,7]
[361667787,1747678257990,-151.0,0.000285,7]
[361667789,1747678257999,-230.50541062,0.000285,5]
[361667792,1747678258011,-1704.84037889,0.00028571,4]
[361667950,1747678259598,-151.0,0.00015156,2]
[361667952,1747678259608,-203.79443766,0.0002,2]
[361668172,1747678261846,-500.0,0.00013699,2]
[361668174,1747678261855,-150.0,0.00014707,2]
[361668176,1747678261865,-150.0,0.00014712,2]
[361668178,1747678261874,-150.0,0.00014722,2]
[361668180,1747678261884,-150.0,0.00014723,2]
[361668183,1747678261895,-150.0,0.00014726,2]
[361668185,1747678261907,-150.0,0.00014731,2]
[361668187,1747678261918,-150.0,0.00014739,2]
[361668188,1747678261927,-150.0,0.0001474,2]
[361668190,1747678261936,-150.0,0.00014742,2]
[361668192,1747678261946,-150.0,0.00014747,2]
[361668194,1747678261955,-150.0,0.00014752,2]
[361668196,1747678261964,-150.0,0.00014765,2]
[361668198,1747678261973,-150.0,0.00014772,2]
[361668200,1747678261985,-150.0,0.00014776,2]
[361668202,1747678261995,-150.0,0.00014777,2]
[361668204,1747678262004,-150.0,0.0001478,2]
[361668206,1747678262014,-150.0,0.00014782,2]
[361668208,1747678262023,-150.0,0.00014782,2]
[361668210,1747678262032,-150.0,0.00014787,2]
[361668212,1747678262042,-150.0,0.00014791,2]
[361668214,1747678262052,-150.0,0.00014791,2]
[361668216,1747678262061,-150.0,0.00014792,2]
[361668218,1747678262071,-150.0,0.00014792,2]
[361668220,1747678262081,-150.0,0.00014794,2]
[361668222,1747678262090,-150.0,0.00014795,2]
[361668224,1747678262100,-150.0,0.00014799,2]
[361668226,1747678262110,-150.0,0.00014799,2]
[361668228,1747678262120,-150.0,0.00014803,2]
[361668230,1747678262129,-150.0,0.00014803,2]
[361668232,1747678262139,-150.0,0.00014805,2]
[361668234,1747678262149,-76.31203307,0.00014807,2]
[361668241,1747678262205,-73.68796693,0.00014807,2]
[361668243,1747678262216,-150.0,0.0001481,2]
[361668245,1747678262224,-72.29199308,0.00014812,2]
[361668247,1747678262241,-77.70800692,0.00014812,2]
[361668249,1747678262252,-150.0,0.00014816,2]
[361668250,1747678262262,-150.0,0.00014819,2]
[361668252,1747678262272,-150.0,0.00014819,2]
[361668254,1747678262282,-150.0,0.00014825,2]
[361668255,1747678262292,-150.0,0.00014825,2]
[361668257,1747678262302,-150.0,0.00014826,2]
[361668259,1747678262312,-150.0,0.00014833,2]
[361668260,1747678262322,-150.0,0.00014833,2]
[361668262,1747678262331,-150.0,0.00014837,2]
[361668263,1747678262351,-150.0,0.0001484,2]
[361668265,1747678262362,-150.0,0.00014841,2]
[361668267,1747678262372,-150.0,0.00014846,2]
[361668268,1747678262382,-150.0,0.00014852,2]
[361668270,1747678262391,-150.0,0.00014854,2]
[361668272,1747678262403,-150.0,0.00014855,2]
[361668273,1747678262414,-150.0,0.00014856,2]
[361668275,1747678262428,-150.0,0.00014856,2]
[361668277,1747678262439,-150.0,0.0001486,2]
[361668279,1747678262448,-150.0,0.0001486,2]
[361668281,1747678262459,-150.0,0.00014861,2]
[361668282,1747678262469,-150.0,0.00014861,2]
[361668284,1747678262484,-150.0,0.00014862,2]
[361668286,1747678262496,-150.0,0.00014866,2]
[361668287,1747678262508,-150.0,0.00014868,2]
[361668289,1747678262518,-150.0,0.0001487,2]
[361668290,1747678262528,-150.0,0.00014874,2]
[361668292,1747678262538,-150.0,0.00014878,2]
[361668294,1747678262548,-150.0,0.00014878,2]
[361668296,1747678262558,-150.0,0.00014878,2]
[361668298,1747678262567,-150.0,0.00014881,2]
[361668299,1747678262577,-150.0,0.00014886,2]
[361668301,1747678262587,-150.0,0.00014886,2]
[361668303,1747678262596,-150.0,0.00014887,2]
[361668305,1747678262607,-150.0,0.0001489,2]
[361668306,1747678262616,-150.0,0.00014896,2]
[361668308,1747678262626,-150.0,0.00014898,2]
[361668310,1747678262636,-150.0,0.00014899,2]
[361668312,1747678262645,-150.0,0.00014902,2]
[361668313,1747678262654,-150.0,0.00014905,2]
[361668315,1747678262664,-150.0,0.00014906,2]
[361668317,1747678262674,-150.0,0.00014911,2]
[361668319,1747678262682,-150.0,0.00014914,2]
[361668320,1747678262692,-150.0,0.00014925,2]
[361668322,1747678262702,-150.0,0.00014931,2]
[361668324,1747678262711,-150.0,0.00014934,2]
[361668326,1747678262721,-150.0,0.00014935,2]
[361668328,1747678262734,-150.0,0.00014944,2]
[361668329,1747678262744,-150.0,0.00014944,2]
[361668331,1747678262754,-150.0,0.00014946,2]
[361668333,1747678262764,-150.0,0.00014946,2]
[361668335,1747678262774,-150.0,0.00014947,2]
[361668337,1747678262784,-150.0,0.00014947,2]
[361668338,1747678262794,-150.0,0.00014949,2]
[361668340,1747678262808,-150.0,0.00014953,2]
[361668342,1747678262817,-150.0,0.00014956,2]
[361668344,1747678262827,-150.0,0.00014957,2]
[361668345,1747678262836,-150.0,0.00014958,2]
[361668347,1747678262846,-150.0,0.00014967,2]
[361668349,1747678262856,-150.0,0.00014968,2]
[361668351,1747678262865,-150.0,0.00014969,2]
[361668353,1747678262874,-150.0,0.00014973,2]
[361668355,1747678262888,-150.0,0.00014976,2]
[361668357,1747678262897,-150.0,0.00014976,2]
[361668358,1747678262906,-150.0,0.00014979,2]
[361668360,1747678262915,-150.0,0.00014979,2]
[361668362,1747678262924,-150.0,0.00014979,2]
[361668364,1747678262933,-150.0,0.00015147,2]
[361668366,1747678262942,-405.39224688,0.0001593,2]
[361671086,1747678392447,500.0,0.00026351,120]
[361671088,1747679024653,1200.17,0.00026243,120]
[361671114,1747679432064,-200.0,0.000113,4]
[361671118,1747679432074,-200.0,0.00011325,2]
[361671120,1747679432083,-200.0,0.0001135,2]
[361671122,1747679432093,-500.0,0.000114,4]
[361671124,1747679432102,-200.0,0.0001143,2]
[361671126,1747679432111,-800.0,0.000115,4]
[361671128,1747679432120,-176.70000001,0.000116,4]
[361671131,1747679432144,-823.29999999,0.000116,4]
[361671133,1747679432153,-1300.0,0.000117,4]
[361671135,1747679432162,-200.0,0.000118,4]
[361671137,1747679432171,-8.14992204,0.00011899,2]
[361671144,1747679432226,-291.85007796,0.00011899,2]
[361671146,1747679432235,-1200.0,0.00011899,2]
[361671148,1747679432246,-300.0,0.00011899,2]